bitfinex-derivatives/quotes_BNBF0:USTF0_20250401
["timestamp","ask_amount","ask_price","bid_price","bid_amount"]
[1743526548990,3.06211228,612.35,612.29,1.4436426]
[1743526549194,1.21774356,612.36,612.29,1.4436426]
[1743526549195,5.46769114,612.34,612.29,1.4436426]
[1743526549397,6.68549061,612.33,612.29,1.117]
[1743526549593,3.0492037,612.32,612.29,1.117]
[1743526549798,1.50378601,612.31,612.29,1.117]
[1743526549994,2.72152957,612.3,612.29,1.117]
[1743526551398,1.21774356,612.3,612.29,1.117]
[1743526553099,0.65261683,612.67,612.29,1.117]
[1743526553297,6.5981487,612.66,612.29,1.117]
[1743526553498,6.5981487,612.65,612.29,1.117]
[1743526553700,6.5981487,612.64,612.29,1.117]
[1743526553901,10.41330105,612.63,612.29,1.117]
[1743526554103,6.5981487,612.62,612.29,1.117]
[1743526554398,6.5981487,612.61,612.29,1.117]
[1743526554604,6.5981487,612.6,612.2,0.28410714]
[1743526554801,6.5981487,612.59,612.2,0.28410714]
[1743526554997,6.5981487,612.58,612.2,0.28410714]
[1743526555302,10.41330105,612.57,612.2,0.28410714]
[1743526555498,6.5981487,612.56,611.04,1.19283982]
[1743526555696,6.5981487,612.55,611.06,0.3273001]
[1743526555902,6.5981487,612.54,611.06,0.3273001]
[1743526556101,5.45606944,612.53,611.06,0.3273001]
[1743526556302,5.45606944,612.52,611.06,0.3273001]
[1743526556502,5.45606944,612.51,611.06,0.3273001]
[1743526556703,5.45606944,612.5,611.07,0.28425799]
[1743526557002,5.45441023,612.49,611.09,0.32728403]
[1743526557199,5.45441023,612.48,611.09,0.32728403]
[1743526557405,5.45441023,612.47,611.09,0.32728403]
[1743526557605,5.45441023,612.46,611.09,0.32728403]
[1743526557802,5.45441023,612.45,611.09,0.32728403]
[1743526558003,5.45441023,612.44,611.09,0.32728403]
[1743526558201,5.45441023,612.43,611.09,0.32728403]
[1743526558401,1.50395498,612.42,611.1,1.118]
[1743526558706,1.50395498,612.41,611.12,0.32726796]
[1743526558906,1.50395498,612.4,611.12,0.32726796]
[1743526559105,1.50395498,612.39,611.12,0.32726796]
[1743526559300,1.50395498,612.38,611.12,0.32726796]
[1743526559504,5.45194551,612.37,611.12,0.32726796]
[1743526559799,6.59427021,612.36,611.12,0.32726796]
[1743526560004,6.59394184,612.35,611.12,0.32726796]
[1743526560200,6.59394184,612.34,611.12,0.32726796]
[1743526560400,6.59394184,612.33,611.12,0.32726796]
[1743526560602,6.59394184,612.32,611.12,0.32726796]
[1743526560806,6.59394184,612.31,611.12,0.32726796]
[1743526561107,1.60165262,612.44,611.12,0.32726796]
[1743526561108,6.59394184,612.3,611.12,0.32726796]
[1743526561308,5.94117411,612.29,611.12,0.32726796]
[1743526561508,3.81496764,612.32,611.12,0.32726796]
[1743526561509,8.61368704,612.28,611.12,0.32726796]
[1743526561709,5.45156276,612.27,611.12,0.32726796]
[1743526561908,5.45156276,612.26,611.12,0.32726796]
[1743526562105,1.50395498,612.25,611.12,0.32726796]
[1743526562300,1.50395498,612.24,611.12,0.32726796]
[1743526562509,1.50395498,612.23,611.12,0.32726796]
[1743526562710,3.16212428,612.26,611.12,0.32726796]
[1743526562711,3.04740369,612.22,611.12,0.32726796]
[1743526563009,1.50395498,612.21,611.12,0.32726796]
[1743526563211,1.50395498,612.2,611.12,0.32726796]
[1743526563503,1.50395498,612.19,611.12,0.32726796]
[1743526563709,1.50395498,612.18,611.12,0.32726796]
[1743526564010,1.21633864,612.19,611.12,0.32726796]
[1743526564011,1.50395498,612.17,611.13,1.19283982]
[1743526564209,1.50395498,612.16,611.15,0.3272519]
[1743526564406,1.21633864,612.17,611.15,0.3272519]
[1743526564605,1.50157942,612.16,611.15,0.3272519]
[1743526564803,1.21633864,612.17,611.15,0.3272519]
[1743526565007,2.5622481,612.6,611.15,0.3272519]
[1743526565208,7.55011117,612.59,611.15,0.3272519]
[1743526565408,0.95998137,612.57,611.15,0.3272519]
[1743526565710,6.5901298,612.56,611.15,0.3272519]
[1743526565910,6.5901298,612.55,611.15,0.3272519]
[1743526566111,6.5901298,612.54,611.15,0.3272519]
[1743526566306,6.5901298,612.53,611.15,0.3272519]
[1743526566508,6.5901298,612.52,611.15,0.3272519]
[1743526566712,6.5901298,612.51,611.15,0.3272519]
[1743526567012,1.60226673,612.46,611.15,0.3272519]
[1743526567207,6.5901298,612.45,611.15,0.3272519]
[1743526567410,6.5901298,612.44,611.15,0.3272519]
[1743526567606,6.5901298,612.43,611.15,0.3272519]
[1743526567807,6.5901298,612.42,611.15,0.3272519]
[1743526568010,1.60226673,612.39,611.15,0.3272519]
[1743526568209,6.5901298,612.38,611.15,0.3272519]
[1743526568406,6.5901298,612.37,611.15,0.3272519]
[1743526568607,6.5901298,612.36,611.15,0.3272519]
[1743526568810,6.58899625,612.35,611.15,0.3272519]
[1743526569007,6.58899625,612.34,611.15,0.3272519]
[1743526569211,6.58899625,612.33,611.15,0.3272519]
[1743526569413,6.58899625,612.32,611.15,0.3272519]
[1743526569609,3.81296276,612.34,611.15,0.3272519]
[1743526569610,6.58899625,612.31,611.15,0.3272519]
[1743526569812,5.44416948,612.3,611.15,0.3272519]
[1743526570017,5.44416948,612.29,611.15,0.3272519]
[1743526570310,8.60437419,612.28,611.15,0.3272519]
[1743526570610,5.44602696,612.27,611.15,0.3272519]
[1743526570812,5.44602696,612.26,611.15,0.3272519]
[1743526571011,5.44602696,612.25,611.15,0.3272519]
[1743526571209,5.44602696,612.24,611.15,0.3272519]
[1743526571509,5.93574599,612.23,611.15,0.3272519]
[1743526571814,2.55849776,612.43,611.15,0.3272519]
[1743526571815,9.09597598,612.22,611.15,0.3272519]
[1743526572015,5.44602696,612.21,611.15,0.3272519]
[1743526572216,5.44602696,612.2,611.15,0.3272519]
[1743526572416,5.44602696,612.19,611.15,0.3272519]
[1743526572715,5.44602696,612.18,611.15,0.3272519]
[1743526572916,3.16020471,612.21,611.15,0.3272519]
[1743526572917,5.44602696,612.17,611.15,0.3272519]
[1743526573211,5.44602696,612.16,611.15,0.3272519]
[1743526573512,8.60623167,612.15,611.16,1.19283982]
[1743526573715,5.44570512,612.14,611.18,0.32723583]
[1743526573910,3.04335882,612.13,611.18,0.32723583]
[1743526574216,1.60226673,612.59,611.18,0.32723583]
[1743526574410,0.9586118,612.44,611.18,0.32723583]
[1743526574614,0.9586118,612.41,611.18,0.32723583]
[1743526574815,6.58343422,612.4,611.18,0.32723583]
[1743526575113,6.58318285,612.39,611.18,0.32723583]
[1743526575317,6.58318285,612.38,611.18,0.32723583]
[1743526575619,10.39251592,612.37,611.18,0.32723583]
[1743526575912,10.39251592,612.36,611.18,0.32723583]
[1743526576117,6.58318285,612.35,611.18,0.32723583]
[1743526576418,6.58318285,612.34,611.18,0.32723583]
[1743526576617,6.58318285,612.33,611.18,0.32723583]
[1743526576912,10.39251592,612.32,611.18,0.32723583]
[1743526577112,6.58318285,612.31,611.18,0.32723583]
[1743526577416,5.44040258,612.3,611.18,0.32723583]
[1743526577618,5.92808977,612.29,611.18,0.32723583]
[1743526577818,5.43830816,612.28,611.18,0.32723583]
[1743526578017,5.43830816,612.27,611.18,0.32723583]
[1743526578220,5.43830816,612.26,611.18,0.32723583]
[1743526578416,5.43830816,612.25,611.18,0.32723583]
[1743526578617,5.43830816,612.24,611.18,0.32723583]
[1743526578813,5.43830816,612.23,611.18,1.44423583]
[1743526579013,5.43830816,612.22,611.18,1.44423583]
[1743526579318,3.89707711,612.21,611.18,1.44423583]
[1743526579622,1.54123105,612.22,611.18,1.44423583]
[1743526579623,5.43830816,612.2,611.18,1.44423583]
[1743526579819,5.43830816,612.19,611.18,1.44423583]
[1743526580119,5.43830816,612.18,611.2,1.19283982]
[1743526580317,5.43830816,612.17,611.22,0.32721442]
[1743526580515,5.43569129,612.16,611.22,0.32721442]
[1743526580717,3.03910037,612.15,611.22,0.32721442]
[1743526581018,1.49786932,612.14,611.22,0.32721442]
[1743526581219,1.49786932,612.13,611.22,0.32721442]
[1743526581420,1.49717302,612.12,611.22,0.32721442]
[1743526581615,1.49717302,612.11,611.22,0.32721442]
[1743526581814,6.0839121,612.1,611.22,0.32721442]
[1743526582014,7.7876689,612.09,611.22,0.32721442]
[1743526582321,6.57370128,612.08,611.22,0.32721442]
[1743526582524,6.57370128,612.07,611.22,0.32721442]
[1743526582821,10.3789541,612.06,611.22,0.32721442]
[1743526583020,4.54527186,612.05,611.22,0.32721442]
[1743526583222,3.89221961,612.04,611.22,0.32721442]
[1743526583416,3.89221961,612.03,611.22,0.32721442]
[1743526583621,3.89221961,612.02,611.22,0.32721442]
[1743526583821,5.43085985,612.01,611.22,0.32721442]
[1743526584022,5.43085985,612.0,611.22,0.32721442]
[1743526584215,5.43085985,611.99,611.22,0.32721442]
[1743526584421,3.89221961,611.98,611.22,0.32721442]
[1743526584620,5.43085985,611.97,611.22,0.32721442]
[1743526584922,5.4279979,611.96,611.22,0.32721442]
[1743526585122,5.41381613,611.95,611.22,0.32721442]
[1743526585318,3.88912404,611.94,611.22,0.32721442]
[1743526585521,1.49717302,611.93,611.22,0.32721442]
[1743526585725,1.49717302,611.92,611.22,0.32721442]
[1743526585924,1.49717302,611.91,611.22,0.32721442]
[1743526586124,1.49717302,611.9,611.22,0.32721442]
[1743526586324,1.49717302,611.89,611.22,0.32721442]
[1743526586523,1.49717302,611.88,611.22,0.32721442]
[1743526586726,1.49717302,611.87,611.22,0.32721442]
[1743526586922,1.49717302,611.86,611.22,0.32721442]
[1743526587123,1.60226673,612.27,611.22,0.32721442]
[1743526587124,1.49717302,611.85,611.22,0.32721442]
[1743526587325,1.49506648,611.84,611.22,0.32721442]
[1743526587523,1.49506648,611.83,611.22,0.32721442]
[1743526587721,1.49506648,611.82,611.22,0.32721442]
[1743526587926,1.49506648,611.81,611.22,0.32721442]
[1743526588124,1.49506648,611.8,611.22,0.32721442]
[1743526588322,1.60226673,612.23,611.22,0.32721442]
[1743526588523,6.55961848,612.22,611.22,0.32721442]
[1743526588721,6.55961848,612.21,611.22,0.32721442]
[1743526589026,6.55961848,612.2,611.22,0.32721442]
[1743526589226,6.5596269,612.19,611.22,0.32721442]
[1743526589421,5.41665747,612.18,611.22,0.32721442]
[1743526589727,9.87245771,612.17,611.22,0.32721442]
[1743526589923,6.06981771,612.16,611.22,0.32721442]
[1743526590129,5.41665747,612.15,611.22,0.32721442]
[1743526590428,5.41665747,612.14,611.22,0.32721442]
[1743526590624,5.41665747,612.13,611.22,0.32721442]
[1743526590823,5.41665747,612.12,611.22,0.32721442]
[1743526591026,5.41665747,612.11,611.22,0.32721442]
[1743526591222,1.496381,612.1,611.22,0.32721442]
[1743526591423,1.496381,612.09,611.22,0.32721442]
[1743526591629,3.14954089,612.12,611.22,0.32721442]
[1743526591825,1.21136188,612.08,611.22,0.32721442]
[1743526592930,1.14249616,612.52,611.22,0.32721442]
[1743526593130,6.57552641,612.51,611.22,0.32721442]
[1743526593333,6.57552641,612.5,611.25,1.19283982]
[1743526593531,6.57553193,612.49,611.27,0.32718765]
[1743526593731,6.0858852,612.48,611.27,0.32718765]
[1743526593932,5.43303025,612.47,611.27,0.32718765]
[1743526594132,6.08589509,612.46,611.27,0.32718765]
[1743526594433,5.43303025,612.45,611.27,0.32718765]
[1743526594732,4.5552969,612.44,611.27,0.32718765]
[1743526595032,9.24805846,612.43,611.27,0.32718765]
[1743526595227,5.43608462,612.42,611.27,0.32718765]
[1743526595433,1.50092035,612.41,611.27,0.32718765]
[1743526595629,1.50092035,612.4,611.27,0.32718765]
[1743526595933,1.50092035,612.39,611.38,1.19283982]
[1743526596134,1.50092035,612.38,611.4,0.32711808]
[1743526596327,1.21502562,612.41,611.4,0.32711808]
[1743526596526,2.72176212,612.4,611.4,0.32711808]
[1743526596730,1.21502562,612.4,611.4,0.32711808]
[1743526597133,5.45388342,612.39,611.4,0.32711808]
[1743526597326,5.45388342,612.38,611.4,0.32711808]
[1743526597531,5.45700178,612.37,611.63,1.19283982]
[1743526597729,5.45816717,612.36,611.64,0.32698973]
[1743526597929,3.92048528,612.35,611.64,0.32698973]
[1743526598132,1.50788544,612.34,611.64,0.32698973]
[1743526598435,1.5088814,612.33,611.64,0.32698973]
[1743526598629,1.50881257,612.32,611.64,0.32698973]
[1743526598833,5.46045696,612.31,611.64,0.32698973]
[1743526599032,6.11326758,612.3,611.64,0.32698973]
[1743526599233,5.46045696,612.29,611.64,0.32698973]
[1743526599435,5.46045696,612.28,611.64,0.32698973]
[1743526599631,5.46045696,612.27,611.64,0.32698973]
[1743526599935,3.16649503,612.28,611.64,0.32698973]
[1743526599936,5.46045696,612.26,611.64,0.32698973]
[1743526600131,5.46045696,612.25,611.64,0.32698973]
[1743526600330,5.46045696,612.24,611.64,0.32698973]
[1743526600533,5.46045696,612.23,611.64,0.32698973]
[1743526600836,3.92225628,612.22,611.64,0.32698973]
[1743526601031,1.50881257,612.21,611.64,0.32698973]
[1743526601239,5.46285311,612.2,611.64,0.32698973]
[1743526601536,1.50881257,612.19,611.64,0.32698973]
[1743526601836,5.46559273,612.18,611.64,0.32698973]
[1743526602035,6.60835706,612.17,611.64,0.32698973]
[1743526602235,6.60835706,612.16,611.64,0.32698973]
[1743526602531,6.60838374,612.15,611.64,0.32698973]
[1743526602736,6.6097668,612.14,611.64,0.32698973]
[1743526602931,9.28645359,612.13,611.64,0.32698973]
[1743526603131,5.46692458,612.12,611.64,0.32698973]
[1743526603336,5.46692458,612.11,611.64,0.32698973]
[1743526603534,5.46692458,612.1,611.64,0.32698973]
[1743526603729,5.46692458,612.09,611.64,0.32698973]
[1743526603935,5.46692458,612.08,611.64,0.32698973]
[1743526604134,3.81952901,612.12,611.64,0.32698973]
[1743526604337,3.6356672,614.34,611.64,0.32698973]
[1743526604338,1.21502562,612.07,611.64,0.32698973]
[1743526605233,1.14285794,612.45,611.64,0.32698973]
[1743526605434,6.61082874,612.44,611.64,0.32698973]
[1743526605738,6.61082874,612.43,611.64,0.32698973]
[1743526605938,6.61082874,612.42,611.64,0.32698973]
[1743526606134,6.12103044,612.41,611.64,0.32698973]
[1743526606434,5.46956439,612.4,611.64,0.32698973]
[1743526606638,5.46956439,612.39,611.65,1.114]
[1743526606840,5.46956439,612.38,611.66,0.32697904]
[1743526607037,5.46956439,612.37,611.66,0.32697904]
[1743526607233,1.51117987,612.36,611.66,0.32697904]
[1743526607431,1.51117987,612.35,611.66,0.32697904]
[1743526607637,1.51117987,612.34,611.66,0.32697904]
[1743526607833,1.51117987,612.33,611.66,0.32697904]
[1743526608038,1.51117987,612.32,611.66,0.32697904]
[1743526608241,1.51117987,612.31,611.66,0.32697904]
[1743526608435,1.51117987,612.3,611.66,0.32697904]
[1743526608636,1.51208023,612.29,611.66,0.32697904]
[1743526608939,1.51208023,612.28,611.66,0.32697904]
[1743526609235,1.51208023,612.27,611.66,0.32697904]
[1743526609440,1.51208023,612.26,611.66,0.32697904]
[1743526609641,1.22304945,612.26,611.66,0.32697904]
[1743526610544,1.14261089,612.6,611.66,0.32697904]
[1743526610740,6.61668673,612.59,611.66,0.32697904]
[1743526610937,6.61668673,612.58,611.66,0.32697904]
[1743526611139,6.61668673,612.57,611.66,0.32697904]
[1743526611343,6.61668673,612.56,611.66,0.32697904]
[1743526611537,6.61668673,612.55,611.66,0.32697904]
[1743526611739,6.61668673,612.54,611.66,0.32697904]
[1743526611942,6.61668673,612.53,611.66,0.32697904]
[1743526612247,1.61076396,612.38,611.66,0.32697904]
[1743526612438,1.60226673,612.4,611.66,0.32697904]
[1743526612439,2.03189173,612.37,611.66,0.32697904]
[1743526612638,6.6174592,612.36,611.66,0.32697904]
[1743526612838,8.22882407,612.35,611.66,0.32697904]
[1743526613045,8.22882407,612.34,611.66,0.32697904]
[1743526613243,8.22882407,612.33,611.66,0.32697904]
[1743526613441,1.61136487,612.3,611.66,0.32697904]
[1743526613643,1.60226673,612.27,611.66,0.32697904]
[1743526613842,6.6174592,612.26,611.66,0.32697904]
[1743526614043,8.21972593,612.25,611.66,0.32697904]
[1743526614339,6.6174592,612.24,611.66,0.32697904]
[1743526614543,6.6174592,612.23,611.66,0.32697904]
[1743526614738,6.6174592,612.22,611.66,0.32697904]
[1743526614939,6.6174592,612.21,611.66,0.32697904]
[1743526615140,6.6174592,612.2,611.66,0.32697904]
[1743526615438,10.45296338,612.19,611.66,0.32697904]
[1743526615642,6.6174592,612.18,611.66,0.32697904]
[1743526615838,6.6174592,612.17,611.66,0.32697904]
[1743526616143,10.45296338,612.16,611.66,0.32697904]
[1743526616444,6.61738446,612.15,611.66,0.32697904]
[1743526616648,6.61738446,612.14,611.66,0.32697904]
[1743526616946,6.61738446,612.13,611.66,0.32697904]
[1743526617147,6.61738446,612.12,611.66,0.32697904]
[1743526617342,6.61738446,612.11,611.66,0.32697904]
[1743526617538,6.61738446,612.1,611.66,0.32697904]
[1743526617743,1.61140216,612.06,611.66,0.32697904]
[1743526618044,1.60226673,612.03,611.66,0.32697904]
[1743526618239,8.22878662,612.02,611.65,1.114]
[1743526618440,1.61140216,611.99,611.65,1.114]
[1743526618640,1.60960213,611.97,611.65,1.114]
[1743526618841,6.06757616,611.98,611.65,1.114]
[1743526619045,6.611456,611.97,611.65,1.114]
[1743526619247,6.611456,611.96,611.65,1.114]
[1743526619447,6.611456,611.95,611.65,1.114]
[1743526619649,6.611456,611.94,611.65,1.114]
[1743526619843,3.83550418,611.97,611.65,1.114]
[1743526619844,6.611456,611.93,611.65,1.114]
[1743526620044,10.44696018,611.92,611.65,1.114]
[1743526620248,6.611456,611.91,611.65,1.114]
[1743526620449,6.611456,611.9,611.65,1.114]
[1743526620645,6.611456,611.89,611.65,1.114]
[1743526620847,6.611456,611.88,611.65,1.114]
[1743526621049,6.611456,611.87,611.65,1.114]
[1743526621250,6.611456,611.86,611.65,1.114]
[1743526621547,6.61149933,611.85,611.65,1.114]
[1743526621749,6.61149933,611.84,611.65,1.114]
[1743526621948,6.61149933,611.83,611.65,1.114]
[1743526622152,6.61149933,611.82,611.65,1.114]
[1743526622351,6.61149933,611.81,611.65,1.114]
[1743526622549,6.61149933,611.8,611.65,1.114]
[1743526622749,6.61149933,611.79,611.65,1.114]
[1743526622953,6.61149933,611.78,611.65,1.114]
[1743526623149,6.61149933,611.77,611.65,1.114]
[1743526623346,6.61149933,611.76,611.65,1.114]
[1743526623554,0.96577133,611.86,611.65,1.114]
[1743526623555,6.61149933,611.75,611.65,1.114]
[1743526623749,6.61149933,611.74,611.65,1.114]
[1743526623954,6.61149933,611.73,611.65,1.114]
[1743526624156,6.61149933,611.72,611.65,1.114]
[1743526624451,8.48854829,611.71,611.65,1.114]
[1743526624654,6.61158888,611.7,611.42,0.28442643]
[1743526624957,6.61158888,611.69,610.53,1.19283982]
[1743526625255,6.61158888,611.68,610.55,0.32757349]
[1743526625448,6.61158888,611.67,610.55,0.32757349]
[1743526625653,6.61158888,611.66,610.55,0.32757349]
[1743526625955,6.60447114,611.65,610.55,0.32757349]
[1743526626151,6.60447114,611.64,610.55,0.32757349]
[1743526626351,6.60447114,611.63,610.55,0.32757349]
[1743526626550,3.83550418,611.64,610.55,0.32757349]
[1743526626754,6.58195816,611.63,610.55,0.32757349]
[1743526626951,6.58195816,611.62,610.55,0.32757349]
[1743526627148,6.58195816,611.61,610.55,1.44257349]
[1743526627353,6.58195816,611.6,610.55,1.44257349]
[1743526627553,8.18422489,611.59,610.55,1.44257349]
[1743526627749,6.58195816,611.58,610.55,1.44257349]
[1743526627948,6.58195816,611.57,610.55,1.44257349]
[1743526628149,6.58195816,611.56,610.55,1.44257349]
[1743526628354,6.58195816,611.55,610.55,1.44257349]
[1743526628548,6.58195816,611.54,610.55,1.44257349]
[1743526628748,6.58195816,611.53,610.55,1.44257349]
[1743526629051,6.58195816,611.52,610.55,1.44257349]
[1743526629257,6.58195816,611.51,610.55,1.44257349]
[1743526629557,6.58195816,611.5,610.55,1.44257349]
[1743526629749,6.09159501,611.49,610.55,1.44257349]
[1743526629953,1.60104113,611.74,610.55,1.44257349]
[1743526629954,9.27328165,611.48,610.55,1.44257349]
[1743526630152,6.58166735,611.47,610.55,1.44257349]
[1743526630351,10.41717153,611.46,610.55,1.44257349]
[1743526630552,6.58697011,611.45,610.55,1.44257349]
[1743526630751,6.58697011,611.44,610.55,1.44257349]
[1743526630952,6.58697011,611.43,610.55,1.44257349]
[1743526631256,6.58697011,611.42,610.55,1.44257349]
[1743526631457,9.19838381,611.41,610.55,1.44257349]
[1743526631656,6.58697011,611.4,610.55,1.44257349]
[1743526631857,6.58918224,611.39,610.55,1.44257349]
[1743526632053,6.58918224,611.38,610.55,1.44257349]
[1743526632254,6.58918224,611.37,610.55,1.44257349]
[1743526632453,6.58940884,611.36,610.55,1.44257349]
[1743526632650,6.58940884,611.35,610.55,1.44257349]
[1743526632850,6.58940884,611.34,610.55,1.44257349]
[1743526633156,6.58940884,611.33,610.55,1.44257349]
[1743526633358,6.58940884,611.32,610.55,1.44257349]
[1743526633552,6.58940884,611.31,610.55,1.44257349]
[1743526633757,6.58940884,611.3,610.55,1.44257349]
[1743526633951,6.58940884,611.29,610.55,1.44257349]
[1743526634152,6.58940884,611.28,610.55,1.44257349]
[1743526634351,6.58940884,611.27,610.55,1.44257349]
[1743526634553,1.50418412,611.26,610.55,1.44257349]
[1743526634757,1.50418412,611.25,610.55,1.44257349]
[1743526634957,1.50418412,611.24,610.55,1.44257349]
[1743526635159,1.50418412,611.23,610.55,1.44257349]
[1743526635352,1.22409048,611.26,610.55,1.44257349]
[1743526635353,1.50418412,611.22,610.55,1.44257349]
[1743526635555,1.50418412,611.21,610.55,1.44257349]
[1743526635752,5.43769824,611.2,610.55,1.44257349]
[1743526635954,1.50418412,611.19,610.55,1.44257349]
[1743526636154,1.50418412,611.18,610.55,1.44257349]
[1743526636350,1.50418412,611.17,610.55,1.44257349]
[1743526636550,1.50418412,611.16,610.55,1.44257349]
[1743526636751,1.50418412,611.15,610.55,1.44257349]
[1743526636953,1.50418412,611.14,610.55,1.44257349]
[1743526637256,1.22409048,611.15,610.55,1.44257349]
[1743526638051,3.20535932,611.62,610.55,1.44257349]
[1743526638259,8.17837037,611.61,610.55,1.44257349]
[1743526638555,7.04427939,611.6,610.55,1.44257349]
[1743526638759,5.04513733,611.59,610.55,1.44257349]
[1743526638960,6.08491423,611.58,610.55,1.44257349]
[1743526639260,6.57527778,611.57,610.55,1.44257349]
[1743526639560,6.57527778,611.56,610.55,1.44257349]
[1743526639760,3.8109414,611.57,610.55,1.44257349]
[1743526639761,6.57527778,611.55,610.55,1.44257349]
[1743526639957,1.60309259,611.51,610.55,1.44257349]
[1743526640154,1.60226673,611.53,610.55,1.44257349]
[1743526640358,0.49040378,611.5,610.55,1.44257349]
[1743526640659,6.56798286,611.49,610.55,1.44257349]
[1743526640860,6.56798286,611.48,610.55,1.44257349]
[1743526641160,6.56798286,611.47,610.55,1.44257349]
[1743526641362,6.56798286,611.46,610.55,1.44257349]
[1743526641560,5.42370737,611.45,610.55,1.44257349]
[1743526641762,5.42370737,611.44,610.55,1.44257349]
[1743526642063,5.42370737,611.43,610.55,1.44257349]
[1743526642269,3.89551188,611.42,610.55,1.44257349]
[1743526642470,3.89551188,611.41,610.55,1.44257349]
[1743526642662,3.89551188,611.4,610.55,1.44257349]
[1743526642865,3.89551188,611.39,610.55,1.44257349]
[1743526643065,1.4982738,611.38,610.55,1.44257349]
[1743526643265,1.4982738,611.37,610.55,1.44257349]
[1743526643469,1.4982738,611.36,610.55,1.44257349]
[1743526643669,1.4982738,611.35,610.55,1.44257349]
[1743526643865,1.4982738,611.34,610.55,1.44257349]
[1743526644067,1.4982738,611.33,610.55,1.44257349]
[1743526644367,1.4982738,611.32,610.55,1.44257349]
[1743526644580,1.4982738,611.31,610.55,1.44257349]
[1743526644772,1.4982738,611.3,610.55,1.44257349]
[1743526644969,1.4982738,611.29,610.55,1.44257349]
[1743526645170,1.4982738,611.28,610.55,1.44257349]
[1743526645368,1.4982738,611.27,610.55,1.44257349]
[1743526645674,1.4982738,611.26,610.55,1.44257349]
[1743526645874,1.21427948,611.27,610.55,1.44257349]
[1743526646173,1.60226673,611.68,610.55,1.44257349]
[1743526646174,1.59428192,611.76,610.55,1.44257349]
[1743526646367,6.55866127,611.75,610.55,1.44257349]
[1743526646571,8.15294319,611.74,610.55,1.44257349]
[1743526646771,1.59428192,611.69,610.55,1.44257349]
[1743526646967,6.55866127,611.68,610.55,1.44257349]
[1743526647171,6.55866127,611.67,610.55,1.44257349]
[1743526647371,6.06832297,611.66,610.55,1.44257349]
[1743526647571,6.55866127,611.65,610.55,1.44257349]
[1743526647768,5.03306572,611.64,610.55,1.44257349]
[1743526647968,4.54272742,611.63,610.55,1.44257349]
[1743526648275,4.54272742,611.62,610.55,1.44257349]
[1743526648574,9.70708642,611.61,610.55,1.44257349]
[1743526648775,6.55829145,611.6,610.55,1.44257349]
[1743526648970,6.55829145,611.59,610.55,1.44257349]
[1743526649168,6.55829145,611.58,610.55,1.44257349]
[1743526649369,6.55829145,611.57,610.55,1.44257349]
[1743526649570,6.55829145,611.56,610.55,1.44257349]
[1743526649768,0.95627004,611.54,610.55,1.44257349]
[1743526649974,4.74307689,611.56,610.55,1.44257349]
[1743526649975,6.50372687,611.53,610.55,1.44257349]
[1743526650172,5.35970679,611.52,610.55,1.44257349]
[1743526650377,5.35970679,611.51,610.55,1.44257349]
[1743526650570,5.35970679,611.5,610.55,1.44257349]
[1743526650769,5.35970679,611.49,610.55,1.44257349]
[1743526650974,2.99336389,611.48,610.55,1.44257349]
[1743526651176,5.36184979,611.47,610.55,1.44257349]
[1743526651375,5.36184979,611.46,610.55,1.44257349]
[1743526651577,5.36184979,611.45,610.55,1.44257349]
[1743526651772,5.36184979,611.44,610.55,1.44257349]
[1743526651977,5.36184979,611.43,610.55,1.44257349]
[1743526652173,5.36184979,611.42,610.55,1.44257349]
[1743526652378,5.36184979,611.41,610.55,1.44257349]
[1743526652578,5.36184979,611.4,610.55,1.44257349]
[1743526652878,5.36184979,611.39,610.55,1.44257349]
[1743526653077,2.99336389,611.38,610.55,1.44257349]
[1743526653277,2.99336389,611.37,610.55,1.44257349]
[1743526653477,1.47952929,611.36,610.55,1.44257349]
[1743526653679,1.47952929,611.35,610.55,1.44257349]
[1743526653977,1.48153454,611.34,610.55,1.44257349]
[1743526654178,1.48153454,611.33,610.55,1.44257349]
[1743526654374,1.48153454,611.32,610.55,1.44257349]
[1743526654573,1.21107499,611.34,610.55,1.44257349]
[1743526654574,1.48153454,611.31,610.55,1.44257349]
[1743526654777,1.48153454,611.3,610.55,1.44257349]
[1743526654972,1.48153454,611.29,610.55,1.44257349]
[1743526655178,1.48163664,611.28,610.55,1.44257349]
[1743526655481,1.48163664,611.27,610.55,1.44257349]
[1743526655780,1.21107499,611.29,610.55,1.44257349]
[1743526655781,1.48163664,611.26,610.55,1.44257349]
[1743526655977,1.48163664,611.25,610.55,1.44257349]
[1743526656177,1.48163664,611.24,610.55,1.44257349]
[1743526656378,1.48163664,611.23,610.55,1.44257349]
[1743526656577,1.48163664,611.22,610.55,1.44257349]
[1743526656881,1.60226673,611.64,610.55,1.44257349]
[1743526657175,9.63300449,611.63,610.55,1.44257349]
[1743526657381,6.51800439,611.62,610.55,1.44257349]
[1743526657583,9.63300449,611.61,610.55,1.44257349]
[1743526657778,6.51980137,611.6,610.55,1.44257349]
[1743526657976,6.51980137,611.59,610.55,1.44257349]
[1743526658181,6.51980137,611.58,610.55,1.44257349]
[1743526658376,6.51980137,611.57,610.55,1.44257349]
[1743526658584,6.51980137,611.56,610.55,1.44257349]